[Event "Serbian League Women 2024"]
[Site "Bajina Basta"]
[Date "2024.09.28"]
[Round "2.16"]
[White "Djukic, Sandra"]
[Black "Maksimovic, Masa"]
[Result "1-0"]
[ECO "A16"]
[WhiteElo "2126"]
[BlackElo "2093"]
[Annotator "ChessBase"]
[PlyCount "155"]
[EventDate "2024.09.26"]
[EventType "team-tourn"]
[EventCountry "SRB"]
[SourceTitle "playchess.com"]
[Source "ChessBase"]
[SourceQuality "1"]
[TimeControl "40/5400+30:1800+30"]

1. Nf3 {[%emt 0:00:05]} Nf6 {[%emt 0:00:14]} 2. g3 {[%emt 0:01:53]} g6 {[%emt 0:00:10]} 3. Bg2 {[%emt 0:00:05]} Bg7 {[%emt 0:00:16]} 4. O-O {[%emt 0:00:21]} O-O {[%emt 0:00:06]} 5. c4 {[%emt 0:02:31]} d6 {[%emt 0:00:55]} 6. Nc3 {[%emt 0:00:40]} Nc6 {[%emt 0:01:38]} 7. d3 {[%emt 0:02:28]} Bd7 {[%emt 0:11:36]} 8. Rb1 {[%emt 0:00:20]} Qc8 {[%emt 0:00:07]} 9. b4 {[%emt 0:04:38]} Bh3 {[%emt 0:00:23]} 10. b5 {[%emt 0:00:39]} Ne5 {[%emt 0:10:06]} 11. Nxe5 {[%emt 0:02:53]} dxe5 {[%emt 0:00:04]} 12. Re1 {[%emt 0:29:23]} Bxg2 {[%emt 0:07:31]} 13. Kxg2 {[%emt 0:00:06]} h5 {[%emt 0:00:40]} 14. f3 {[%emt 0:24:27]} Qd7 {[%emt 0:24:36]} 15. Be3 {[%emt 0:03:53]} Nh7 {[%emt 0:02:11]} 16. Qb3 {[%emt 0:02:53]} Kh8 {[%emt 0:06:26]} 17. c5 {[%emt 0:03:12]} Rad8 {[%emt 0:09:49]} 18. c6 {[%emt 0:04:16]} bxc6 {[%emt 0:00:14]} 19. bxc6 {[%emt 0:00:05]} Qxc6 {[%emt 0:00:05]} 20. Rec1 {[%emt 0:00:05]} f5 {[%emt 0:05:10]} 21. Ne4 {[%emt 0:07:06]} Qa8 {[%emt 0:11:28]} 22. Nc5 {[%emt 0:01:38]} f4 {[%emt 0:00:05]} 23. Bf2 {[%emt 0:01:32]} fxg3 {[%emt 0:01:02]} 24. Bxg3 {[%emt 0:01:18]} Rd6 {[%emt 0:06:52]} 25. Ne6 {[%emt 0:05:40]} Rb6 {[%emt 0:00:11]} 26. Qc4 {[%emt 0:00:06]} Rfb8 {[%emt 0:00:57]} 27. Rxb6 {[%emt 0:00:22]} Rxb6 {[%emt 0:00:06]} 28. Nxg7 {[%emt 0:00:28]} Kxg7 {[%emt 0:00:04]} 29. Qxc7 {[%emt 0:01:24]} Rb7 {[%emt 0:01:13]} 30. Qxe5+ {[%emt 0:00:04]} Nf6 {[%emt 0:00:08]} 31. Qe6 {[%emt 0:00:51]} Qd8 {[%emt 0:00:20]} 32. Be5 {[%emt 0:00:29]} Qd7 {[%emt 0:01:12]} 33. Qxd7 {[%emt 0:00:33]} Rxd7 {[%emt 0:00:05]} 34. Rc6 {[%emt 0:00:15]} Rb7 {[%emt 0:00:47]} 35. Ra6 {[%emt 0:00:21]} Kf7 {[%emt 0:00:05]} 36. Bxf6 {[%emt 0:00:56]} exf6 {[%emt 0:00:06]} 37. Kg3 {[%emt 0:00:29]} g5 {[%emt 0:00:14]} 38. f4 {[%emt 0:00:30]} Kg6 {[%emt 0:00:14]} 39. fxg5 {[%emt 0:00:07]} Kxg5 {[%emt 0:00:04]} 40. h4+ {[%emt 0:00:31]} Kg6 {[%emt 0:00:05]} 41. Kf3 {[%emt 0:01:47]} Rd7 {[%emt 0:01:50]} 42. Ra4 {[%emt 0:03:11]} Rc7 {[%emt 0:04:04]} 43. e4 {[%emt 0:01:38]} Kg7 {[%emt 0:04:07]} 44. Kf4 {[%emt 0:05:17]} Kg6 {[%emt 0:00:23]} 45. Ra6 {[%emt 0:00:20]} Rd7 {[%emt 0:03:41]} 46. Ke3 {[%emt 0:00:56]} Kg7 {[%emt 0:02:49]} 47. d4 {[%emt 0:01:17]} Kf7 {[%emt 0:00:45]} 48. Ra5 {[%emt 0:03:29]} Kg6 {[%emt 0:00:08]} 49. d5 {[%emt 0:00:31]} Rb7 {[%emt 0:02:09]} 50. Ra6 {[%emt 0:01:21]} Rd7 {[%emt 0:03:40]} 51. Kd4 {[%emt 0:01:52]} Kf7 {[%emt 0:00:06]} 52. a4 {[%emt 0:04:53]} Rb7 {[%emt 0:00:31]} 53. a5 {[%emt 0:02:19]} Ke7 {[%emt 0:02:08]} 54. Rc6 {[%emt 0:02:57]} Rb4+ {[%emt 0:00:54]} 55. Rc4 {[%emt 0:04:28]} Rb7 {[%emt 0:01:37]} 56. a6 {[%emt 0:00:43]} Rb1 {[%emt 0:05:28]} 57. Rc7+ {[%emt 0:00:28]} Kd6 {[%emt 0:00:04]} 58. Rf7 {[%emt 0:00:17]} Rd1+ {[%emt 0:00:18]} 59. Ke3 {[%emt 0:01:27]} Re1+ {[%emt 0:00:08]} 60. Kd3 {[%emt 0:00:19]} Rf1 {[%emt 0:03:13]} 61. Rh7 {[%emt 0:01:04]} f5 {[%emt 0:01:29]} 62. Rh6+ {[%emt 0:00:27]} Kc5 {[%emt 0:01:21]} 63. Rc6+ {[%emt 0:00:05]} Kb5 {[%emt 0:00:02]} 64. exf5 {[%emt 0:01:14]} Rxf5 {[%emt 0:00:09]} 65. Ke4 {[%emt 0:00:04]} Rf1 {[%emt 0:01:28]} 66. Ke5 {[%emt 0:00:08]} Re1+ {[%emt 0:01:45]} 67. Kd6 {[%emt 0:00:04]} Rd1 {[%emt 0:00:17]} 68. Ke6 {[%emt 0:01:32]} Re1+ {[%emt 0:00:18]} 69. Kd7 {[%emt 0:00:17]} Re4 {[%emt 0:00:12]} 70. d6 {[%emt 0:00:23]} Rxh4 {[%emt 0:00:25]} 71. Kc7 {[%emt 0:00:18]} Rg4 {[%emt 0:01:59]} 72. d7 {[%emt 0:00:06]} Rg7 {[%emt 0:00:03]} 73. Rh6 {[%emt 0:00:19]} Rf7 {[%emt 0:01:16]} 74. Rxh5+ {[%emt 0:01:00]} Kxa6 {[%emt 0:00:07]} 75. Kc8 {[%emt 0:00:06]} Rf8+ {[%emt 0:00:37]} 76. d8=Q {[%emt 0:00:12]} Rxd8+ {[%emt 0:00:02]} 77. Kxd8 {[%emt 0:00:06]} Kb6 {[%emt 0:00:02]} 78. Kd7 {[%emt 0:00:08]} 1-0

[Event "Serbian League Women 2024"]
[Site "Bajina Basta"]
[Date "2024.09.28"]
[Round "2.17"]
[White "Maltsevskaya, Aleksandra"]
[Black "Garifullina, Leya"]
[Result "1/2-1/2"]
[ECO "C44"]
[WhiteElo "2404"]
[BlackElo "2438"]
[Annotator "ChessBase"]
[PlyCount "114"]
[EventDate "2024.09.26"]
[EventType "team-tourn"]
[EventCountry "SRB"]
[SourceTitle "playchess.com"]
[Source "ChessBase"]
[SourceQuality "1"]
[TimeControl "40/5400+30:1800+30"]

1. e4 {[%emt 0:00:04]} e5 {[%emt 0:00:20]} 2. Nf3 {[%emt 0:02:48]} Nc6 {[%emt 0:00:24]} 3. g3 {[%emt 0:06:13]} Nf6 {[%emt 0:02:28]} 4. d3 {[%emt 0:00:22]} d5 {[%emt 0:04:16]} 5. exd5 {[%emt 0:00:10]} Nxd5 {[%emt 0:00:13]} 6. Bg2 {[%emt 0:00:07]} Be7 {[%emt 0:02:14]} 7. O-O {[%emt 0:00:12]} O-O {[%emt 0:00:07]} 8. Re1 {[%emt 0:00:36]} Bf6 {[%emt 0:01:32]} 9. Nbd2 {[%emt 0:02:11]} Bf5 {[%emt 0:01:00]} 10. h3 {[%emt 0:01:02]} h6 {[%emt 0:03:03]} 11. Ne4 {[%emt 0:08:57]} Be7 {[%emt 0:00:37]} 12. Bd2 {[%emt 0:04:14]} Re8 {[%emt 0:02:28]} 13. Nc3 {[%emt 0:13:00]} Nxc3 {[%emt 0:00:33]} 14. Bxc3 {[%emt 0:00:05]} Bd6 {[%emt 0:06:15]} 15. d4 {[%emt 0:16:21]} f6 {[%emt 0:19:31]} 16. dxe5 {[%emt 0:07:26]} fxe5 {[%emt 0:01:08]} 17. Nh4 {[%emt 0:00:25]} Bh7 {[%emt 0:01:06]} 18. Be4 {[%emt 0:11:25]} Bxe4 {[%emt 0:08:35]} 19. Rxe4 {[%emt 0:00:06]} Qf6 {[%emt 0:00:43]} 20. Qd5+ {[%emt 0:01:00]} Qf7 {[%emt 0:09:54]} 21. Rd1 {[%emt 0:03:51]} Rad8 {[%emt 0:10:23]} 22. Qxf7+ {[%emt 0:02:03]} Kxf7 {[%emt 0:00:06]} 23. Nf3 {[%emt 0:00:07]} Kf6 {[%emt 0:01:51]} 24. Kg2 {[%emt 0:02:01]} Re7 {[%emt 0:04:18]} 25. b4 {[%emt 0:08:42]} a6 {[%emt 0:01:17]} 26. a4 {[%emt 0:00:11]} b5 {[%emt 0:03:25]} 27. axb5 {[%emt 0:03:52]} axb5 {[%emt 0:00:05]} 28. Rd5 {[%emt 0:04:31]} Rb8 {[%emt 0:00:36]} 29. Rd3 {[%emt 0:01:12]} Ra8 {[%emt 0:00:49]} 30. Ne1 {[%emt 0:01:28]} Kf5 {[%emt 0:02:26]} 31. Rde3 {[%emt 0:00:42]} Ra3 {[%emt 0:01:34]} 32. g4+ {[%emt 0:00:05]} Kg6 {[%emt 0:00:20]} 33. Rd3 {[%emt 0:00:24]} Rf7 {[%emt 0:01:27]} 34. Bxe5 {[%emt 0:01:00]} Rxd3 {[%emt 0:04:23]} 35. Nxd3 {[%emt 0:00:05]} Re7 {[%emt 0:01:54]} 36. f4 {[%emt 0:00:05]} Bxe5 {[%emt 0:00:32]} 37. fxe5 {[%emt 0:01:08]} Kf7 {[%emt 0:00:20]} 38. Kf3 {[%emt 0:00:45]} Ke6 {[%emt 0:00:35]} 39. c3 {[%emt 0:00:30]} g5 {[%emt 0:01:15]} 40. Nc5+ {[%emt 0:00:31]} Kd5 {[%emt 0:02:09]} 41. e6 {[%emt 0:30:07]} Re8 {[%emt 0:30:41]} 42. Re1 {[%emt 0:00:00]} Nd8 {[%emt 0:00:00]} 43. Rd1+ {[%emt 0:00:00]} Kc6 {[%emt 0:00:00]} 44. e7 {[%emt 0:00:00]} Nf7 {[%emt 0:00:00]} 45. Re1 {[%emt 0:00:00]} Kd5 {[%emt 0:00:00]} 46. Re6 {[%emt 0:00:00]} Ne5+ {[%emt 0:00:00]} 47. Kg3 {[%emt 0:00:00]} Nd7 {[%emt 0:00:00]} 48. Rxh6 {[%emt 0:00:00]} Nxc5 {[%emt 0:00:00]} 49. bxc5 {[%emt 0:00:00]} Rxe7 {[%emt 0:00:00]} 50. Rh5 {[%emt 0:00:00]} Re3+ {[%emt 0:00:00]} 51. Kg2 {[%emt 0:00:37]} Rxc3 {[%emt 0:00:00]} 52. Rxg5+ {[%emt 0:00:04]} Ke4 {[%emt 0:00:00]} 53. c6 {[%emt 0:00:24]} b4 {[%emt 0:00:00]} 54. Rb5 {[%emt 0:00:08]} b3 {[%emt 0:00:00]} 55. h4 {[%emt 0:04:52]} Rc2+ {[%emt 0:00:00]} 56. Kg3 {[%emt 0:00:05]} Rc3+ {[%emt 0:00:00]} 57. Kg2 {[%emt 0:00:06]} Rc2+ {[%emt 0:00:00]} 1/2-1/2

[Event "Serbian League Women 2024"]
[Site "Bajina Basta"]
[Date "2024.09.28"]
[Round "2.18"]
[White "Rakhmangulova, Anastasiya"]
[Black "Prudnikova, Svetlana"]
[Result "1/2-1/2"]
[ECO "C42"]
[WhiteElo "2283"]
[BlackElo "2117"]
[Annotator "ChessBase"]
[PlyCount "91"]
[EventDate "2024.09.26"]
[EventType "team-tourn"]
[EventCountry "SRB"]
[SourceTitle "playchess.com"]
[Source "ChessBase"]
[SourceQuality "1"]
[TimeControl "40/5400+30:1800+30"]

1. e4 {[%emt 0:01:50]} e5 {[%emt 0:00:07]} 2. Nf3 {[%emt 0:00:13]} Nf6 {[%emt 0:00:16]} 3. Nxe5 {[%emt 0:01:50]} d6 {[%emt 0:00:21]} 4. Nf3 {[%emt 0:00:06]} Nxe4 {[%emt 0:00:05]} 5. Nc3 {[%emt 0:01:06]} Nxc3 {[%emt 0:00:17]} 6. dxc3 {[%emt 0:00:04]} Be7 {[%emt 0:00:28]} 7. Be3 {[%emt 0:00:17]} Nd7 {[%emt 0:01:05]} 8. Qd2 {[%emt 0:01:15]} O-O {[%emt 0:03:11]} 9. O-O-O {[%emt 0:00:30]} Nf6 {[%emt 0:00:53]} 10. Bd3 {[%emt 0:00:45]} d5 {[%emt 0:01:33]} 11. h4 {[%emt 0:03:51]} c5 {[%emt 0:03:01]} 12. Kb1 {[%emt 0:23:09]} Bg4 {[%emt 0:09:12]} 13. Rdg1 {[%emt 0:06:50]} Ne4 {[%emt 0:05:54]} 14. Qe1 {[%emt 0:02:22]} Bf6 {[%emt 0:10:16]} 15. Bxe4 {[%emt 0:06:06]} dxe4 {[%emt 0:00:07]} 16. Nd2 {[%emt 0:00:17]} Qd5 {[%emt 0:04:48]} 17. Bg5 {[%emt 0:11:04]} Bxg5 {[%emt 0:09:46]} 18. hxg5 {[%emt 0:00:18]} Rfe8 {[%emt 0:11:08]} 19. Qe3 {[%emt 0:00:29]} Rad8 {[%emt 0:00:33]} 20. Nb3 {[%emt 0:00:19]} b6 {[%emt 0:00:26]} 21. Re1 {[%emt 0:05:58]} Rd7 {[%emt 0:11:23]} 22. f3 {[%emt 0:01:48]} Bf5 {[%emt 0:05:22]} 23. g4 {[%emt 0:00:56]} Be6 {[%emt 0:00:18]} 24. fxe4 {[%emt 0:04:50]} Qe5 {[%emt 0:00:06]} 25. Qh3 {[%emt 0:00:08]} Qxg5 {[%emt 0:01:35]} 26. Qxh7+ {[%emt 0:00:44]} Kf8 {[%emt 0:00:01]} 27. Nc1 {[%emt 0:03:54]} Rd2 {[%emt 0:02:39]} 28. Nd3 {[%emt 0:14:34]} Rg2 {[%emt 0:03:24]} 29. e5 {[%emt 0:04:15]} Rxg4 {[%emt 0:16:45]} 30. Rh5 {[%emt 0:03:36]} Qg6 {[%emt 0:00:00]} 31. Qxg6 {[%emt 0:01:11]} Rxg6 {[%emt 0:00:00]} 32. b3 {[%emt 0:00:55]} Rg4 {[%emt 0:00:00]} 33. c4 {[%emt 0:00:16]} Ke7 {[%emt 0:00:00]} 34. Rf1 {[%emt 0:00:13]} Rd8 {[%emt 0:00:00]} 35. Nf4 {[%emt 0:00:58]} Rd4 {[%emt 0:00:00]} 36. Ne2 {[%emt 0:00:56]} Rd2 {[%emt 0:00:00]} 37. Nc3 {[%emt 0:00:12]} Rgg2 {[%emt 0:00:00]} 38. Rc1 {[%emt 0:00:15]} g6 {[%emt 0:00:12]} 39. Rh8 {[%emt 0:00:04]} Bf5 {[%emt 0:01:09]} 40. Nd5+ {[%emt 0:00:05]} Kd7 {[%emt 0:00:44]} 41. Ra8 {[%emt 0:12:52]} Bxc2+ {[%emt 0:14:20]} 42. Ka1 {[%emt 0:00:35]} a5 {[%emt 0:03:31]} 43. Ra7+ {[%emt 0:00:45]} Ke8 {[%emt 0:08:45]} 44. Ra8+ {[%emt 0:02:29]} Kd7 {[%emt 0:00:16]} 45. Ra7+ {[%emt 0:00:31]} Ke8 {[%emt 0:00:06]} 46. Ra8+ {[%emt 0:00:38]} 1/2-1/2

[Event "Serbian League Women 2024"]
[Site "Bajina Basta"]
[Date "2024.09.28"]
[Round "2.19"]
[White "Drljevic, Ljilja"]
[Black "Mandura, Tijana"]
[Result "0-1"]
[ECO "A00"]
[WhiteElo "2102"]
[BlackElo "2207"]
[Annotator "ChessBase"]
[PlyCount "136"]
[EventDate "2024.09.26"]
[EventType "team-tourn"]
[EventCountry "SRB"]
[SourceTitle "playchess.com"]
[Source "ChessBase"]
[SourceQuality "1"]
[TimeControl "40/5400+30:1800+30"]

1. Nf3 {[%emt 0:00:04]} d5 {[%emt 0:00:09]} 2. a3 {[%emt 0:00:21]} Nd7 {[%emt 0:01:11]} 3. b4 {[%emt 0:01:14]} e5 {[%emt 0:00:12]} 4. Bb2 {[%emt 0:00:15]} Bd6 {[%emt 0:00:26]} 5. e3 {[%emt 0:06:37]} Ngf6 {[%emt 0:00:28]} 6. c4 {[%emt 0:06:37]} dxc4 {[%emt 0:02:42]} 7. Bxc4 {[%emt 0:00:29]} O-O {[%emt 0:00:11]} 8. d4 {[%emt 0:02:18]} e4 {[%emt 0:01:08]} 9. Nfd2 {[%emt 0:05:50]} Nb6 {[%emt 0:02:09]} 10. Nc3 {[%emt 0:02:18]} Qe7 {[%emt 0:02:29]} 11. Be2 {[%emt 0:03:54]} Nbd5 {[%emt 0:10:23]} 12. Nb5 {[%emt 0:04:14]} a6 {[%emt 0:05:05]} 13. Nxd6 {[%emt 0:00:22]} cxd6 {[%emt 0:00:05]} 14. Rc1 {[%emt 0:06:15]} Bd7 {[%emt 0:00:55]} 15. O-O {[%emt 0:00:30]} Rfc8 {[%emt 0:05:26]} 16. Nc4 {[%emt 0:04:59]} Rc7 {[%emt 0:05:22]} 17. Na5 {[%emt 0:07:26]} Rxc1 {[%emt 0:05:20]} 18. Qxc1 {[%emt 0:00:29]} Rc8 {[%emt 0:00:48]} 19. Qd2 {[%emt 0:00:19]} Bb5 {[%emt 0:01:52]} 20. Rc1 {[%emt 0:06:15]} Rxc1+ {[%emt 0:01:56]} 21. Bxc1 {[%emt 0:00:18]} Qc7 {[%emt 0:03:33]} 22. Bb2 {[%emt 0:05:14]} b6 {[%emt 0:10:24]} 23. Bxb5 {[%emt 0:05:01]} axb5 {[%emt 0:00:06]} 24. Nb3 {[%emt 0:00:10]} Qc4 {[%emt 0:03:48]} 25. Nc1 {[%emt 0:00:24]} Nd7 {[%emt 0:01:05]} 26. f3 {[%emt 0:18:09]} f5 {[%emt 0:00:47]} 27. fxe4 {[%emt 0:01:57]} fxe4 {[%emt 0:00:05]} 28. h3 {[%emt 0:00:36]} N7f6 {[%emt 0:02:21]} 29. Kh2 {[%emt 0:02:55]} Kf7 {[%emt 0:05:57]} 30. Kg1 {[%emt 0:02:58]} Ke6 {[%emt 0:01:02]} 31. Kf2 {[%emt 0:00:28]} h5 {[%emt 0:01:49]} 32. Ne2 {[%emt 0:00:27]} g5 {[%emt 0:03:09]} 33. Qc1 {[%emt 0:01:56]} h4 {[%emt 0:02:19]} 34. g3 {[%emt 0:01:10]} Kf5 {[%emt 0:01:09]} 35. gxh4 {[%emt 0:01:21]} gxh4 {[%emt 0:00:32]} 36. Qg1 {[%emt 0:01:54]} Qc2 {[%emt 0:01:09]} 37. Qc1 {[%emt 0:00:30]} Qxc1 {[%emt 0:01:53]} 38. Bxc1 {[%emt 0:00:16]} Nh7 {[%emt 0:00:41]} 39. Bd2 {[%emt 0:00:46]} Ng5 {[%emt 0:00:32]} 40. Ng1 {[%emt 0:00:04]} Kg6 {[%emt 0:03:20]} 41. Be1 {[%emt 0:07:22]} Kh5 {[%emt 0:00:30]} 42. Bd2 {[%emt 0:03:50]} Ne6 {[%emt 0:03:40]} 43. Ne2 {[%emt 0:03:00]} Kg5 {[%emt 0:00:24]} 44. Bc1 {[%emt 0:10:00]} Kf5 {[%emt 0:02:21]} 45. Bd2 {[%emt 0:00:22]} Ng5 {[%emt 0:00:56]} 46. Ng1 {[%emt 0:00:13]} Ne7 {[%emt 0:01:42]} 47. Bc3 {[%emt 0:03:53]} Ke6 {[%emt 0:07:08]} 48. d5+ {[%emt 0:03:04]} Nxd5 {[%emt 0:00:05]} 49. Bd4 {[%emt 0:00:49]} Kf5 {[%emt 0:01:09]} 50. Bb2 {[%emt 0:01:05]} Ke6 {[%emt 0:06:59]} 51. Ba1 {[%emt 0:01:11]} Ne7 {[%emt 0:02:01]} 52. Bd4 {[%emt 0:00:50]} Nf5 {[%emt 0:00:39]} 53. Bxb6 {[%emt 0:00:22]} Kd5 {[%emt 0:00:12]} 54. Bd8 {[%emt 0:01:48]} Ne6 {[%emt 0:00:16]} 55. Bf6 {[%emt 0:00:43]} Kc4 {[%emt 0:00:51]} 56. Ne2 {[%emt 0:00:18]} Kd3 {[%emt 0:06:22]} 57. Nc1+ {[%emt 0:01:26]} Kd2 {[%emt 0:03:43]} 58. Nb3+ {[%emt 0:01:18]} Kc2 {[%emt 0:00:46]} 59. Na5 {[%emt 0:00:30]} Kd3 {[%emt 0:05:07]} 60. Nb7 {[%emt 0:00:20]} Nxe3 {[%emt 0:00:42]} 61. Nxd6 {[%emt 0:00:33]} Nf4 {[%emt 0:02:44]} 62. Bxh4 {[%emt 0:00:36]} Nxh3+ {[%emt 0:02:28]} 63. Kg3 {[%emt 0:00:27]} Ng1 {[%emt 0:00:09]} 64. Nxb5 {[%emt 0:00:35]} Nf5+ {[%emt 0:00:58]} 65. Kg2 {[%emt 0:00:32]} Nxh4+ {[%emt 0:00:10]} 66. Kxg1 {[%emt 0:00:26]} e3 {[%emt 0:00:09]} 67. Nc3 {[%emt 0:00:34]} Kxc3 {[%emt 0:00:07]} 68. b5 {[%emt 0:00:26]} e2 {[%emt 0:00:11]} 0-1

[Event "Serbian League Women 2024"]
[Site "Bajina Basta"]
[Date "2024.09.28"]
[Round "2.20"]
[White "Eric, Jovana"]
[Black "Mijic, Sara"]
[Result "1-0"]
[ECO "C50"]
[WhiteElo "2162"]
[BlackElo "1993"]
[Annotator "ChessBase"]
[PlyCount "81"]
[EventDate "2024.09.26"]
[EventType "team-tourn"]
[EventCountry "SRB"]
[SourceTitle "playchess.com"]
[Source "ChessBase"]
[SourceQuality "1"]
[TimeControl "40/5400+30:1800+30"]

1. e4 {[%emt 0:00:04]} e5 {[%emt 0:00:29]} 2. Nf3 {[%emt 0:00:07]} Nc6 {[%emt 0:00:45]} 3. Bc4 {[%emt 0:00:19]} Bc5 {[%emt 0:01:03]} 4. d3 {[%emt 0:00:22]} Nf6 {[%emt 0:00:33]} 5. Nc3 {[%emt 0:00:53]} h6 {[%emt 0:01:39]} 6. O-O {[%emt 0:00:30]} d6 {[%emt 0:01:00]} 7. Na4 {[%emt 0:01:34]} Bb6 {[%emt 0:04:06]} 8. c3 {[%emt 0:01:26]} O-O {[%emt 0:00:33]} 9. h3 {[%emt 0:03:25]} Ne7 {[%emt 0:03:50]} 10. Nxb6 {[%emt 0:02:35]} axb6 {[%emt 0:00:09]} 11. Re1 {[%emt 0:00:26]} Ng6 {[%emt 0:01:38]} 12. d4 {[%emt 0:02:46]} exd4 {[%emt 0:04:06]} 13. Qxd4 {[%emt 0:09:59]} Re8 {[%emt 0:07:01]} 14. Bb3 {[%emt 0:01:01]} b5 {[%emt 0:12:13]} 15. Bc2 {[%emt 0:02:58]} c5 {[%emt 0:12:49]} 16. Qd3 {[%emt 0:07:24]} Qb6 {[%emt 0:05:13]} 17. a3 {[%emt 0:10:00]} Bd7 {[%emt 0:02:33]} 18. b4 {[%emt 0:13:24]} Rad8 {[%emt 0:01:33]} 19. bxc5 {[%emt 0:13:10]} dxc5 {[%emt 0:02:00]} 20. e5 {[%emt 0:01:17]} Bg4 {[%emt 0:15:21]} 21. Qf1 {[%emt 0:01:06]} Bxf3 {[%emt 0:03:46]} 22. Bxg6 {[%emt 0:10:56]} Nd7 {[%emt 0:01:26]} 23. Bc2 {[%emt 0:02:31]} Bd5 {[%emt 0:04:48]} 24. Qd3 {[%emt 0:01:28]} Nf8 {[%emt 0:00:16]} 25. Qg3 {[%emt 0:01:22]} Nd7 {[%emt 0:03:49]} 26. Bf4 {[%emt 0:04:43]} Qe6 {[%emt 0:03:33]} 27. Rad1 {[%emt 0:00:13]} Bc4 {[%emt 0:01:44]} 28. Rd6 {[%emt 0:01:25]} Qxd6 {[%emt 0:00:34]} 29. exd6 {[%emt 0:00:06]} Rxe1+ {[%emt 0:00:07]} 30. Kh2 {[%emt 0:00:02]} Kf8 {[%emt 0:01:16]} 31. Qh4 {[%emt 0:01:07]} Nf6 {[%emt 0:01:56]} 32. Bxh6 {[%emt 0:00:58]} Rxd6 {[%emt 0:03:09]} 33. Be3 {[%emt 0:02:32]} b6 {[%emt 0:00:24]} 34. Qg3 {[%emt 0:00:48]} Rd8 {[%emt 0:01:14]} 35. Qc7 {[%emt 0:00:16]} Re8 {[%emt 0:00:37]} 36. Qxb6 {[%emt 0:00:18]} Re2 {[%emt 0:00:34]} 37. Bd1 {[%emt 0:02:12]} Re1 {[%emt 0:00:22]} 38. Bf3 {[%emt 0:00:10]} Kg8 {[%emt 0:00:21]} 39. Qxc5 {[%emt 0:00:17]} Ne4 {[%emt 0:00:55]} 40. Bxe4 {[%emt 0:00:29]} Rxe4 {[%emt 0:00:02]} 41. Qc8+ {[%emt 0:30:05]} 1-0

[Event "Serbian League Women 2024"]
[Site "Bajina Basta"]
[Date "2024.09.28"]
[Round "2.21"]
[White "Chelushkina, Irina"]
[Black "Gaponenko, Inna"]
[Result "0-1"]
[ECO "D02"]
[WhiteElo "2167"]
[BlackElo "2324"]
[Annotator "ChessBase"]
[PlyCount "82"]
[EventDate "2024.09.26"]
[EventType "team-tourn"]
[EventCountry "SRB"]
[SourceTitle "playchess.com"]
[Source "ChessBase"]
[SourceQuality "1"]
[TimeControl "40/5400+30:1800+30"]

1. Nf3 {[%emt 0:00:10]} d5 {[%emt 0:00:28]} 2. d4 {[%emt 0:01:18]} Nf6 {[%emt 0:01:08]} 3. Bf4 {[%emt 0:00:49]} c5 {[%emt 0:00:30]} 4. c3 {[%emt 0:00:18]} Nc6 {[%emt 0:41:49]} 5. e3 {[%emt 0:02:01]} Qb6 {[%emt 0:01:19]} 6. Qb3 {[%emt 0:02:16]} c4 {[%emt 0:00:15]} 7. Qc2 {[%emt 0:02:28]} Bf5 {[%emt 0:01:45]} 8. Qc1 {[%emt 0:00:02]} e6 {[%emt 0:02:22]} 9. Nbd2 {[%emt 0:02:36]} h6 {[%emt 0:01:38]} 10. Be2 {[%emt 0:00:27]} Be7 {[%emt 0:01:24]} 11. O-O {[%emt 0:03:23]} O-O {[%emt 0:03:23]} 12. Ne1 {[%emt 0:00:56]} Rfc8 {[%emt 0:02:39]} 13. h3 {[%emt 0:05:21]} Qd8 {[%emt 0:01:24]} 14. g4 {[%emt 0:03:33]} Bh7 {[%emt 0:07:37]} 15. Ng2 {[%emt 0:00:12]} b5 {[%emt 0:05:50]} 16. Re1 {[%emt 0:09:30]} a5 {[%emt 0:05:05]} 17. Bf1 {[%emt 0:04:12]} b4 {[%emt 0:00:27]} 18. f3 {[%emt 0:07:51]} a4 {[%emt 0:00:18]} 19. a3 {[%emt 0:00:01]} bxa3 {[%emt 0:01:04]} 20. bxa3 {[%emt 0:00:02]} Na5 {[%emt 0:00:29]} 21. Ra2 {[%emt 0:00:04]} Nb3 {[%emt 0:00:39]} 22. Qb2 {[%emt 0:03:23]} Ra6 {[%emt 0:03:39]} 23. e4 {[%emt 0:02:27]} Nxd2 {[%emt 0:03:55]} 24. Qxd2 {[%emt 0:01:59]} dxe4 {[%emt 0:00:08]} 25. fxe4 {[%emt 0:17:30]} Nxe4 {[%emt 0:00:08]} 26. Qc1 {[%emt 0:00:01]} Rb6 {[%emt 0:05:06]} 27. Rae2 {[%emt 0:04:16]} Rb3 {[%emt 0:08:15]} 28. Rxe4 {[%emt 0:00:30]} Bxe4 {[%emt 0:00:01]} 29. Rxe4 {[%emt 0:00:01]} Bxa3 {[%emt 0:00:04]} 30. Qa1 {[%emt 0:11:49]} Qa5 {[%emt 0:00:05]} 31. Bd2 {[%emt 0:00:02]} Bb2 {[%emt 0:00:41]} 32. Qa2 {[%emt 0:02:24]} Bxc3 {[%emt 0:00:05]} 33. Bxc3 {[%emt 0:00:02]} Rxc3 {[%emt 0:00:03]} 34. Ne3 {[%emt 0:00:03]} Qb4 {[%emt 0:02:47]} 35. d5 {[%emt 0:00:34]} Qc5 {[%emt 0:00:54]} 36. dxe6 {[%emt 0:02:13]} fxe6 {[%emt 0:00:21]} 37. Qd2 {[%emt 0:00:55]} Rxe3 {[%emt 0:00:23]} 38. Qxe3 {[%emt 0:00:39]} Qxe3+ {[%emt 0:00:31]} 39. Rxe3 {[%emt 0:00:01]} c3 {[%emt 0:00:04]} 40. Bd3 {[%emt 0:01:48]} c2 {[%emt 0:00:13]} 41. Bxc2 {[%emt 0:30:05]} Rxc2 {[%emt 0:30:03]} 0-1

[Event "Serbian League Women 2024"]
[Site "Bajina Basta"]
[Date "2024.09.28"]
[Round "2.22"]
[White "Doluhanova, Evgeniya"]
[Black "Borisova, Ekaterina"]
[Result "0-1"]
[ECO "A40"]
[WhiteElo "2304"]
[BlackElo "2205"]
[Annotator "ChessBase"]
[PlyCount "72"]
[EventDate "2024.09.26"]
[EventType "team-tourn"]
[EventCountry "SRB"]
[SourceTitle "playchess.com"]
[Source "ChessBase"]
[SourceQuality "1"]
[TimeControl "40/5400+30:1800+30"]

1. c4 {[%emt 0:04:39]} Nf6 {[%emt 0:00:33]} 2. Nc3 {[%emt 0:00:53]} g6 {[%emt 0:00:18]} 3. Nf3 {[%emt 0:04:12]} Bg7 {[%emt 0:00:09]} 4. e4 {[%emt 0:00:56]} c5 {[%emt 0:00:24]} 5. d4 {[%emt 0:03:21]} Qa5 {[%emt 0:00:07]} 6. Bd3 {[%emt 0:03:38]} cxd4 {[%emt 0:00:19]} 7. Nxd4 {[%emt 0:00:10]} Nc6 {[%emt 0:00:05]} 8. Nb3 {[%emt 0:03:23]} Qc7 {[%emt 0:00:07]} 9. O-O {[%emt 0:00:55]} d6 {[%emt 0:00:33]} 10. h3 {[%emt 0:03:22]} O-O {[%emt 0:00:51]} 11. Be3 {[%emt 0:03:28]} Ne5 {[%emt 0:06:56]} 12. Nb5 {[%emt 0:03:32]} Qb8 {[%emt 0:03:41]} 13. Rc1 {[%emt 0:01:25]} Nxd3 {[%emt 0:08:59]} 14. Qxd3 {[%emt 0:00:06]} b6 {[%emt 0:00:24]} 15. Nd2 {[%emt 0:21:22]} Bb7 {[%emt 0:03:28]} 16. b4 {[%emt 0:00:24]} Rd8 {[%emt 0:12:19]} 17. a4 {[%emt 0:01:47]} Nd7 {[%emt 0:05:17]} 18. Bg5 {[%emt 0:13:40]} Re8 {[%emt 0:03:37]} 19. Nb3 {[%emt 0:00:34]} a6 {[%emt 0:06:34]} 20. Nc3 {[%emt 0:02:07]} a5 {[%emt 0:09:36]} 21. bxa5 {[%emt 0:13:16]} bxa5 {[%emt 0:02:11]} 22. Nb5 {[%emt 0:01:09]} Nb6 {[%emt 0:09:28]} 23. Bd2 {[%emt 0:05:41]} Nxa4 {[%emt 0:03:08]} 24. Bxa5 {[%emt 0:00:15]} Rc8 {[%emt 0:05:26]} 25. Bb4 {[%emt 0:04:49]} Nb2 {[%emt 0:10:04]} 26. Qe2 {[%emt 0:01:01]} Ba6 {[%emt 0:00:17]} 27. Bc3 {[%emt 0:02:55]} Bxc3 {[%emt 0:01:43]} 28. Rxc3 {[%emt 0:00:09]} Nxc4 {[%emt 0:00:27]} 29. N3d4 {[%emt 0:00:48]} Bxb5 {[%emt 0:04:10]} 30. Rb1 {[%emt 0:00:22]} Na3 {[%emt 0:00:49]} 31. Rxb5 {[%emt 0:00:25]} Nxb5 {[%emt 0:00:16]} 32. Nxb5 {[%emt 0:00:03]} Ra1+ {[%emt 0:02:15]} 33. Kh2 {[%emt 0:00:07]} d5+ {[%emt 0:00:47]} 34. g3 {[%emt 0:00:27]} Rxc3 {[%emt 0:00:39]} 35. Nxc3 {[%emt 0:00:05]} d4 {[%emt 0:00:15]} 36. Nd5 {[%emt 0:00:10]} Qb1 {[%emt 0:00:27]} 0-1